[Event "44th Chess Olympiad Open 2022"]
[Site "Chennai"]
[Date "2022.08.03"]
[Round "6.2"]
[White "Abdusattorov, Nodirbek"]
[Black "Harikrishna, Pentala"]
[Result "0-1"]
[WhiteElo "2688"]
[BlackElo "2720"]
[Annotator "TA"]
[PlyCount "68"]
[EventDate "2022.??.??"]
[TimeControl "60"]

{[%evp 12,68,27,22,33,32,34,25,33,25,44,-20,-7,-43,-19,-55,-40,-191,-153,-170,
-106,-168,-103,-106,-50,-61,-60,-60,-66,-64,-29,-154,-156,-165,-148,-233,-231,
-1132,-1108,-917,-421,-420,-417,-410,-412,-687,-672,-1089,-1054,-1708,-1660,
-29986,-29987,-29987,-29988,-29988,-29989,-29989,-29990]} 1. e4 {[%emt 0:00:20]
} e5 {[%emt 0:00:04]} 2. Nf3 {[%emt 0:00:11]} Nc6 {[%emt 0:00:03]} 3. Bc4 {
[%emt 0:00:10]} Bc5 {[%emt 0:00:05]} 4. d3 {[%emt 0:00:05]} Nf6 {[%emt 0:00:05]
} 5. Bg5 {[%emt 0:00:05][%cal Yc1g5,Yg5h4,Yh4g3]} h6 {[%emt 0:00:20]} 6. Bh4 {
[%emt 0:00:09]} d6 {[%emt 0:00:17]} 7. O-O {[%emt 0:00:13] Recently 7. c3 got
a lot of attention.} a5 $5 {[%emt 0:00:13] An interesting side line. C50:
Hungarian Defence and Giuoco Pianissimo.} 8. c3 {[%emt 0:01:19]} Ba7 $5 {
[%emt 0:00:07] Exploring less charted territory.} 9. a4 {[%emt 0:00:00]} g5 {
[%emt 0:14:00] White has an edge.} 10. Bg3 {[%emt 0:00:08]} Ne7 {[%emt 0:00:42]
[#]} 11. Qb3 $146 {[%emt 0:02:49]} (11. Re1 $14) ({Predecessor:} 11. Nbd2 Ng6
12. d4 Nd7 13. Nb3 Nb6 14. Nxa5 g4 15. Bb5+ c6 16. Bxc6+ bxc6 17. Nxc6 {
½-½ (29) Cvak,R (2353)-Glatthaar,M (2537) LSS email 2018}) 11... O-O $11 {
[%emt 0:03:51]} 12. Nbd2 {[%emt 0:07:17]} Ng6 {[%emt 0:02:46]} 13. d4 {[%emt 0:
00:27][%cal Rd4e5]} Nh5 $1 {[%emt 0:04:01]} 14. dxe5 $2 {[%emt 0:00:00]} (14.
Kh1 $15) 14... Nxg3 {[%emt 0:05:40]} 15. hxg3 {[%emt 0:00:12] [#]} dxe5 {
[%emt 0:00:30]} (15... g4 $1 $19 {[%cal Rg4f3]} 16. Nh2 Nxe5) 16. Rad1 {
[%emt 0:23:51]} (16. Qc2 $17) 16... g4 {[%emt 0:14:11]} (16... h5 $19 {...g4
is the strong threat.} 17. Qc2 Qf6) 17. Nh2 $17 {[%emt 0:00:05]} Qg5 {[%emt 0:
00:00]} (17... Qf6 $17 {White must now prevent ...h5.} 18. Kh1 Bxf2) 18. Rfe1
$1 $15 {[%emt 0:01:31]} Kg7 {[%emt 0:13:28]} 19. Re2 {[%emt 0:09:55]} h5 {
[%emt 0:00:00] aiming for ...h4.} 20. Ndf1 $1 {[%emt 0:00:12]} h4 {[%emt 0:00:
00]} (20... c6 $5 {[%cal Rh5h4]}) 21. Rd3 {[%emt 0:06:19]} (21. Red2 $1 $11 {
keeps the balance.}) 21... hxg3 $17 {[%emt 0:15:20]} 22. Rxg3 {[%emt 0:00:01]}
Nf4 {[%emt 0:00:16]} 23. Nxg4 {[%emt 0:11:03]} (23. Ree3 $17 Nh5 24. Nxg4 (24.
Nf3 $2 Qf4 $19) 24... Bxe3 25. Ngxe3 Nxg3 26. Nxg3) 23... Bxg4 $19 {[%emt 0:00:
00]} 24. Ne3 $2 {[%emt 0:00:26]} (24. Nh2 Nxe2+ 25. Bxe2 Qc1+ 26. Qd1 Qxd1+ 27.
Bxd1) 24... Bxe3 {[%emt 0:04:50]} ({Less strong is} 24... Nxe2+ 25. Bxe2 Kh7
26. Bxg4 $16) 25. Rexe3 {[%emt 0:00:03]} Ng6 {[%emt 0:05:54]} ({Inferior is} 
25... Nh5 26. Be2 Nxg3 27. Rxg3 Qc1+ 28. Qd1 Qxd1+ 29. Bxd1 $19) (25... Kf6
$142 26. Bf1 Qh4 27. Rxg4 Qxg4 28. Qxb7 Rad8) 26. Be2 {[%emt 0:04:23] [#]} Be6
{[%emt 0:00:05]} ({Not} 26... f5 27. exf5 Qxf5 28. Bxg4 Qxf2+ 29. Kh2 Rh8+ 30.
Bh3 Rxh3+ 31. Rxh3 $18) 27. Qb5 {[%emt 0:00:36]} Qf4 {[%emt 0:03:10]} 28. Qc5 {
[%emt 0:05:44]} (28. Ref3 $142 Qc1+ 29. Bf1) 28... Rh8 {[%emt 0:02:26][%cal
Yf8h8,Yh8h6,Yh6h1,Yh1f1]} 29. Qxc7 {[%emt 0:00:27]} Rh6 {[%emt 0:00:00]
Strongly threatening ...Rah8.} 30. Bf3 {[%emt 0:02:45]} Rc8 {[%emt 0:01:29]}
31. Qxa5 {[%emt 0:00:47]} Rch8 {[%emt 0:00:41][%csl Gh8][%cal Rh6h1] Black
mates.} 32. Kf1 {[%emt 0:00:02]} Rh1+ {[%emt 0:00:13]} 33. Ke2 {[%emt 0:00:05]}
Bc4+ {[%emt 0:00:09]} 34. Kd2 {[%emt 0:00:47]} Rf1 {[%emt 0:00:14] Weighted
Error Value: White=1.02/Black=0.21 (precise)} 0-1

[Event "44th Chess Olympiad Open 2022"]
[Site "Chennai"]
[Date "2022.08.03"]
[Round "6.2"]
[White "Sasikiran, Krishnan"]
[Black "Vokhidov, Shamsiddin"]
[Result "0-1"]
[WhiteElo "2638"]
[BlackElo "2552"]
[Annotator "TA"]
[PlyCount "148"]
[EventDate "2022.??.??"]
[TimeControl "60"]

{[%evp 9,148,8,17,4,7,0,0,0,6,0,0,0,7,-6,0,0,0,0,0,0,0,0,0,-3,0,-18,-12,-17,-6,
-4,-2,-36,-41,-39,-43,-43,-7,-50,-57,-58,-59,-67,-22,-22,-18,-21,-20,-22,-14,
-37,-37,-38,-30,-25,-15,-14,0,-48,11,-130,-131,-141,-115,-156,-139,-179,-165,
-190,-183,-197,-139,-137,-139,-131,-131,-128,-125,-187,-166,-192,-192,-222,
-192,-197,-183,-210,-165,-163,-144,-162,-118,-164,-118,-160,-140,-164,-118,
-179,-177,-187,-150,-180,-119,-178,-150,-186,-119,-179,-150,-202,-182,-158,
-116,-192,-190,-247,-257,-238,-224,-289,-288,-456,-477,-721,-754,-956,-927,
-1485,-687,-582,-605,-29991,-12314,-29994,-29995,-29995,-29996,-29996,-29996,
-29997,-29998]} 1. e4 {[%emt 0:00:04]} c5 {[%emt 0:00:08]} 2. Nf3 {[%emt 0:00:
00]} d6 {[%emt 0:00:05]} 3. Bb5+ {[%emt 0:02:25]} Nd7 {[%emt 0:01:22]} 4. Ba4 {
[%emt 0:00:44]} Ngf6 {[%emt 0:02:43]} 5. O-O {[%emt 0:00:22]} e6 {[%emt 0:00:
00]} 6. d3 {[%emt 0:00:38] B51: Sicilian: Moscow Variation (3 Bb5+) without 3..
.Bd7.} Be7 {[%emt 0:02:19]} 7. c4 {[%emt 0:00:21]} O-O {[%emt 0:00:36]} 8. Nc3
{[%emt 0:00:38] The position is equal.} a6 {[%emt 0:03:39]} 9. h3 {[%emt 0:00:
00]} Qc7 {[%emt 0:02:14]} 10. Qe2 {[%emt 0:15:55]} b6 {[%emt 0:01:59]} 11. Bf4
{[%emt 0:09:02]} Bb7 {[%emt 0:03:15]} 12. Bh2 {[%emt 0:03:59]} Rac8 {[%emt 0:
00:00] [#]} 13. Rac1 $146 {[%emt 0:09:43]} ({Predecessor:} 13. Nd2 Ne5 14. f4
Nc6 15. Nf3 Nd7 16. Rae1 Nd4 17. Nxd4 cxd4 18. Nb1 b5 19. cxb5 {½-½ (32)
Paehtz,E (2479)-Sebag,M (2450) Skolkovo 2019}) 13... Nb8 {[%emt 0:07:57]} 14.
Rfd1 {[%emt 0:12:08]} Nc6 {[%emt 0:08:14]} 15. Qe3 {[%emt 0:00:44]} Rfd8 {
[%emt 0:03:31]} 16. Kh1 {[%emt 0:03:19]} h6 {[%emt 0:04:58]} 17. a3 {[%emt 0:
00:00]} Nd7 {[%emt 0:10:04]} 18. Ne2 {[%emt 0:07:48]} Bf6 {[%emt 0:04:38]} 19.
Rb1 {[%emt 0:00:52]} Nde5 {[%emt 0:01:53]} 20. Bxc6 {[%emt 0:02:35]} Bxc6 {
[%emt 0:03:10]} 21. b4 {[%emt 0:00:54]} Nxf3 {[%emt 0:03:13]} 22. Qxf3 {
[%emt 0:01:19]} Qd7 {[%emt 0:01:31]} 23. Nf4 {[%emt 0:06:02]} b5 {[%emt 0:00:
00]} 24. Qe2 {[%emt 0:04:00]} Bd4 {[%emt 0:03:36]} 25. f3 {[%emt 0:00:43]} Rb8
{[%emt 0:05:53]} (25... a5 $5) 26. Qd2 {[%emt 0:00:37]} e5 {[%emt 0:03:24]} 27.
Ne2 {[%emt 0:01:09]} bxc4 {[%emt 0:00:30]} 28. dxc4 {[%emt 0:00:51]} Rdc8 {
[%emt 0:02:02]} 29. Rbc1 {[%emt 0:01:17]} Ba4 {[%emt 0:01:41] A strong pair of
Bishops.} 30. Re1 {[%emt 0:00:36]} f6 {[%emt 0:02:23]} 31. Ng3 {[%emt 0:00:17]}
Rb6 {[%emt 0:02:00]} 32. Nf5 {[%emt 0:00:26]} Qf7 {[%emt 0:00:01]} 33. f4 {
[%emt 0:01:06]} (33. bxc5 $11 {might be stronger.} Bxc5 34. Bg1) 33... Rbc6 {
[%emt 0:04:54]} (33... cxb4 $15 34. fxe5 (34. Nxd4 exd4 35. Qxd4 Rbc6 $15)
34... dxe5 35. Nxd4 Rd8) 34. Nxd4 {[%emt 0:01:12]} (34. fxe5 $11 {keeps the
balance.} dxe5 35. bxc5 Bxc5 36. Qa5) 34... cxd4 $17 {[%emt 0:00:10]} 35. c5 {
[%emt 0:00:22]} Qe6 {[%emt 0:01:24][%cal Rd6c5]} ({Inferior is} 35... dxc5 36.
bxc5 Re6 37. Bg3 $15) 36. fxe5 {[%emt 0:00:38]} dxe5 {[%emt 0:02:09][%cal
Ya6a5]} 37. Rf1 {[%emt 0:00:11]} a5 {[%emt 0:01:13]} 38. Rf3 {[%emt 0:00:26]}
Ra6 {[%emt 0:00:33]} 39. Bg3 {[%emt 0:00:48]} Bb5 {[%emt 0:01:01]} (39... axb4
$19 {Hoping for ...Bc6.} 40. axb4 Bb5) 40. bxa5 {[%emt 0:00:34]} Bc6 {[%emt 0:
00:00]} 41. Qd3 {[%emt 0:06:02]} Rxa5 {[%emt 0:00:44] ...Rca8 is the strong
threat.} 42. Be1 {[%emt 0:00:49]} Ra7 {[%emt 0:00:33]} 43. Bb4 {[%emt 0:03:02]}
(43. Kh2 $17) 43... Rf7 $19 {[%emt 0:00:06]} 44. Kg1 {[%emt 0:04:20]} Rcf8 {
[%emt 0:02:34]} 45. Re1 {[%emt 0:07:50]} Qd7 {[%emt 0:02:51]} 46. Rg3 {[%emt 0:
00:00]} Kh7 {[%emt 0:03:20]} 47. Kh2 {[%emt 0:00:54]} Kh8 {[%emt 0:02:15]} 48.
Rg6 {[%emt 0:01:11]} Qb7 {[%emt 0:00:44]} 49. Bd2 {[%emt 0:01:40]} Ra8 {
[%emt 0:02:45]} 50. Bb4 {[%emt 0:00:17]} (50. Qf3 $17) 50... Rd8 {[%emt 0:00:
00]} (50... Kh7 $19 51. Rg3 Kh8) 51. Ba5 {[%emt 0:01:36]} Rb8 {[%emt 0:01:36]}
52. Bb4 {[%emt 0:00:17]} Qc7 {[%emt 0:00:18]} ({Black should try} 52... Kh7 $19
53. Qf3 Qd7) 53. Rg3 {[%emt 0:02:18]} (53. Qf3 $17) 53... Rbf8 {[%emt 0:00:37]}
54. Rg6 {[%emt 0:00:42]} Qd7 {[%emt 0:00:57]} 55. Bd2 {[%emt 0:00:45]} Rb8 {
[%emt 0:01:39]} ({Better is} 55... Kh7 $19 56. Rg4 f5 57. exf5 Qxf5 58. Qxf5+
Rxf5) 56. Bb4 {[%emt 0:00:30]} (56. Qf3 $17 {is a better defense.}) 56... Qe6 {
[%emt 0:02:47]} 57. Qe2 {[%emt 0:00:44]} Rff8 {[%emt 0:01:21]} ({Black should
play} 57... Kh7 $1 $19 {[%cal Rh7g6]} 58. Rg3 f5 59. exf5 Rxf5) 58. Qd3 {
[%emt 0:00:29]} (58. Rg3 $17 {keeps fighting.}) 58... Rbe8 {[%emt 0:00:15]} 59.
Qe2 {[%emt 0:00:37]} (59. h4 $17) 59... Qf7 {[%emt 0:00:56]} 60. Rg3 {[%emt 0:
00:00]} Re7 {[%emt 0:01:33]} 61. Qa6 {[%emt 0:00:37]} (61. Rf3 $17) 61... Qe6 {
[%emt 0:00:55]} 62. Qd3 {[%emt 0:00:31]} (62. Rf1 $142) 62... f5 {[%emt 0:00:
00]} 63. exf5 {[%emt 0:00:22]} Rxf5 {[%emt 0:00:02]} 64. a4 {[%emt 0:00:36]}
Qf6 {[%emt 0:00:25]} ({Stronger than} 64... Bxa4 65. c6 Ref7 66. Qxd4 Bxc6 67.
Qd6 Qxd6 68. Bxd6 $17) 65. a5 {[%emt 0:00:32]} (65. Qa6 $142) 65... e4 {
[%emt 0:00:48][%cal Ye5e4,Ye4e3,Ye3e2]} 66. Qa6 {[%emt 0:00:18]} (66. Qc4 $142
e3 67. Rb1) 66... e3 {[%emt 0:00:19] aiming for ...Rf2.} 67. Qc8+ {[%emt 0:00:
21]} Kh7 {[%emt 0:00:01] Active counter play!} 68. a6 {[%emt 0:00:00]} Rf2 {
[%emt 0:00:35]} (68... e2 $142 69. Rb1 Re8) 69. Rg1 {[%emt 0:00:37]} e2 {
[%emt 0:03:37] Strongly threatening ...Rf1.} 70. Re1 {[%emt 0:00:58] [#]} Re3 {
[%emt 0:00:57]} (70... Bxg2 $142 $1 71. Qg4 Bf3+ 72. Kg1 Bxg4 73. Bd2 {[#]} Rf7
$1 74. Rxg4 Qf3 75. Rc1 Qxh3 76. Rxg7+ Kxg7 77. Bxh6+ Qxh6 78. Re1 Qh2#) 71.
Rg4 {[%emt 0:00:33] [#]} Bxg2 $1 {[%emt 0:01:31] Black mates.} 72. Rxg2 {
[%emt 0:00:31]} Qf4+ {[%emt 0:00:01]} 73. Kh1 {[%emt 0:00:00]} Rxg2 {[%emt 0:
00:03]} 74. Kxg2 {[%emt 0:00:16]} Rg3+ {[%emt 0:00:04] Weighted Error Value:
White=0.21 (precise) /Black=0.15 (very precise)} 0-1

[Event "44th Chess Olympiad Open 2022"]
[Site "Chennai"]
[Date "2022.08.03"]
[Round "6.2"]
[White "Sindarov, Javokhir"]
[Black "Erigaisi Arjun"]
[Result "1/2-1/2"]
[WhiteElo "2629"]
[BlackElo "2689"]
[Annotator "TA"]
[PlyCount "97"]
[EventDate "2022.??.??"]
[TimeControl "60"]

{[%evp 15,97,19,24,14,27,16,33,37,25,0,0,0,0,0,0,0,0,0,0,0,0,0,12,0,1,3,14,10,
16,14,21,13,14,21,29,16,40,35,31,18,21,20,62,37,76,68,74,61,106,69,106,54,173,
184,169,0,0,0,0,0,0,0,0,0,0,0,0,0,0,0,0,0,0,0,0,0,0,0,0,0,0,0,0,0]} 1. e4 {
[%emt 0:00:01]} c6 {[%emt 0:00:10]} 2. d4 {[%emt 0:11:09]} d5 {[%emt 0:00:17]}
3. Nc3 {[%emt 0:00:37]} dxe4 {[%emt 0:00:07]} 4. Nxe4 {[%emt 0:00:04]} Nf6 {
[%emt 0:00:06]} 5. Nxf6+ {[%emt 0:00:25]} exf6 {[%emt 0:00:06]} 6. Bc4 {
[%emt 0:00:51]} Bd6 {[%emt 0:00:16]} 7. Qe2+ {[%emt 0:00:10]} Qe7 {[%emt 0:00:
00]} 8. Qxe7+ {[%emt 0:02:53]} Kxe7 {[%emt 0:01:55]} 9. Bd3 {[%emt 0:00:31]
Prevents Bf5. B15: Caro-Kann: 3 Nc3:3...g6 and 3...dxe4 4 Nxe4 Nf6 5 Nxf6+
exf6.} Na6 {[%emt 0:12:26][%cal Yb8a6,Ya6c7,Yc7e6,Ye6c5] [#]} 10. a3 $146 {
[%emt 0:11:11] Prevents Nb4.} ({Predecessor:} 10. c3 Re8 11. Ne2 Nc7 12. c4 Kf8
13. Be3 Bg4 14. Nc3 Rad8 15. h3 Bh5 16. O-O Ne6 {0-1 (33) Karthikeyan,M (2606)
-Xiong,J (2709) Chess.com INT 2021}) 10... b5 {[%emt 0:10:27]} 11. Ne2 {
[%emt 0:00:46] White is slightly better.} Nc7 {[%emt 0:10:04]} 12. Bf4 {
[%emt 0:05:57]} Bxf4 {[%emt 0:09:36]} 13. Nxf4 {[%emt 0:00:09]} Ne6 {[%emt 0:
00:00]} 14. Ne2 {[%emt 0:09:00]} Rd8 {[%emt 0:01:37]} 15. c3 {[%emt 0:01:37]}
c5 {[%emt 0:02:55][%cal Rc5d4]} 16. Be4 {[%emt 0:05:42]} ({But not} 16. Bxh7 g6
17. O-O-O Rh8 $17) 16... Rb8 {[%emt 0:01:39][%cal Rc5d4]} 17. dxc5 {[%emt 0:00:
00]} Nxc5 {[%emt 0:00:07]} 18. Bc2 {[%emt 0:00:31]} Ne6 {[%emt 0:02:23]} 19.
Rd1 {[%emt 0:06:00]} Bd7 {[%emt 0:07:01]} 20. f3 {[%emt 0:04:31]} (20. Bxh7 g6
21. Rd3 Rh8 22. Bxg6 (22. Rh3 $2 Rbe8 $19) 22... fxg6 $17) 20... a5 {[%emt 0:
00:00]} 21. b4 {[%emt 0:01:09]} ({Reject} 21. Bxh7 g6 22. f4 Ng7 $17) 21...
axb4 {[%emt 0:01:12]} 22. axb4 {[%emt 0:00:16]} Ra8 {[%emt 0:01:26]} 23. Kf2 {
[%emt 0:03:20]} g6 {[%emt 0:06:43]} 24. Be4 {[%emt 0:02:29]} Rac8 {[%emt 0:00:
00]} 25. Ra1 {[%emt 0:04:33]} Bc6 {[%emt 0:16:23]} 26. Bxc6 {[%emt 0:02:37]}
Rxc6 {[%emt 0:00:05]} 27. Ra7+ {[%emt 0:00:10]} Kf8 {[%emt 0:03:34]} 28. Rha1 {
[%emt 0:01:35]} Nc7 {[%emt 0:00:35] Prevents Ra8.} 29. Rb7 {[%emt 0:04:03]} Rd2
{[%emt 0:01:10][%cal Yc6e6] [#] ...Re6! is the strong threat.} 30. Ke1 {
[%emt 0:00:19]} Rd7 {[%emt 0:07:52]} 31. Rd1 {[%emt 0:05:18]} Re7 {[%emt 0:00:
00]} 32. Kf2 {[%emt 0:01:20]} (32. Rd8+ {looks sharper.} Kg7 33. Kd2 Ra6 34.
Nd4) 32... Kg7 {[%emt 0:00:56]} 33. Rd8 {[%emt 0:03:15]} (33. g4 $16) 33... Ne6
{[%emt 0:00:40]} (33... f5 $14) 34. Rxe7 $18 {[%emt 0:00:26]} Nxd8 {[%emt 0:00:
00] Endgame [#] KRN-KRN} 35. Nd4 $2 {[%emt 0:01:02]} (35. Rd7 $1 $18 {[%cal
Rd7d8]} Ne6 36. Rb7) 35... Rxc3 $11 {[%emt 0:00:11] The position is equal.} 36.
Rd7 {[%emt 0:00:05]} Rc8 {[%emt 0:00:16]} (36... Nc6 $2 37. Rc7 $18) 37. Nxb5 {
[%emt 0:00:22]} Rc2+ {[%emt 0:00:29]} 38. Kg3 {[%emt 0:00:43]} Nc6 {[%emt 0:00:
10]} 39. Nd6 {[%emt 0:01:26]} Nxb4 {[%emt 0:00:17]} 40. Ne8+ {[%emt 0:01:28]}
Kf8 {[%emt 0:00:14]} 41. Nxf6 {[%emt 0:30:03]} h5 {[%emt 0:00:00]} 42. Nh7+ {
[%emt 0:00:00]} Ke8 {[%emt 0:00:58]} 43. Nf6+ {[%emt 0:00:00]} Kf8 {[%emt 0:00:
10]} 44. Ne4 {[%emt 0:00:00]} Nc6 {[%emt 0:02:46]} 45. Ng5 {[%emt 0:00:00]} Ne7
{[%emt 0:01:20]} 46. Nh7+ {[%emt 0:00:00]} Ke8 {[%emt 0:00:00]} 47. Nf6+ {
[%emt 0:00:00]} Kf8 {[%emt 0:00:05]} 48. Nh7+ {[%emt 0:00:00]} Ke8 {[%emt 0:00:
07]} 49. Nf6+ {[%emt 0:00:00] Weighted Error Value: White=0.09 (flawless) /
Black=0.10 (very precise)} 1/2-1/2

[Event "44th Chess Olympiad Open 2022"]
[Site "Chennai"]
[Date "2022.08.03"]
[Round "6.3"]
[White "Caruana, Fabiano"]
[Black "Maghsoodloo, Parham"]
[Result "1-0"]
[WhiteElo "2783"]
[BlackElo "2701"]
[Annotator "TA"]
[PlyCount "95"]
[EventDate "2022.??.??"]
[TimeControl "60"]

{[%evp 23,95,27,42,15,21,7,18,15,5,10,2,18,10,19,20,0,0,6,30,20,35,35,122,31,
79,37,37,36,31,6,17,12,73,59,57,64,50,54,58,70,120,75,131,134,312,317,425,432,
435,423,429,387,359,209,1464,1410,1314,1302,12822,12812,12813,12814,1879,1821,
12823,7867,7348,1821,1820,1808,1443,1453,1129,1114]} 1. e4 {[%emt 0:00:03]} c5
{[%emt 0:00:06]} 2. Nf3 {[%emt 0:00:03]} d6 {[%emt 0:00:03]} 3. d4 {[%emt 0:00:
00]} cxd4 {[%emt 0:00:04]} 4. Nxd4 {[%emt 0:00:03]} Nf6 {[%emt 0:00:06]} 5. Nc3
{[%emt 0:00:04]} a6 {[%emt 0:00:02]} 6. f3 {[%emt 0:00:10]} e5 {[%emt 0:00:08]}
7. Nb3 {[%emt 0:00:05]} Be6 {[%emt 0:00:40]} 8. Be3 {[%emt 0:00:05]} Nbd7 {
[%emt 0:02:58]} 9. g4 {[%emt 0:00:19]} Be7 {[%emt 0:00:27]} 10. Qd2 {[%emt 0:
00:00]} O-O {[%emt 0:00:49]} 11. O-O-O {[%emt 0:00:22]} b5 {[%emt 0:00:04]} 12.
g5 {[%emt 0:00:20]} b4 {[%emt 0:01:14] 12...Nh5 gains popularity.} 13. gxf6 {
[%emt 0:00:32] B90: Sicilian Najdorf: Unusual White 6th moves, 6 Be3 Ng4 and 6
Be3 e5.} (13. Ne2 $5 {[%cal Rg5f6]} Ne8 14. f4 $11 (14. Qxb4 a5 $11)) 13...
bxc3 {[%emt 0:00:19]} 14. Qxc3 {[%emt 0:00:03]} Nxf6 {[%emt 0:00:21]} 15. Na5 {
[%emt 0:00:06] The position is equal.} Rc8 $132 {[%emt 0:00:46] Black is not
keeping still} 16. Nc6 {[%emt 0:00:30]} Qe8 {[%emt 0:00:24]} 17. Nxe7+ {
[%emt 0:00:05]} Qxe7 {[%emt 0:00:03]} 18. Qa5 {[%emt 0:01:05]} Rc6 {[%emt 0:00:
05]} 19. Rg1 {[%emt 0:00:29]} Rfc8 {[%emt 0:11:59]} 20. Kb1 {[%emt 0:00:08]}
Nh5 {[%emt 0:07:21]} 21. Rg2 {[%emt 0:00:39]} (21. Bxa6 $2 Ra8 22. a3 (22. Bb6
$2 Bc4 $19) 22... Rcxa6 $19) 21... Qf6 {[%emt 0:02:04]} 22. Rf2 {[%emt 0:02:41]
} Qh4 {[%emt 0:06:19]} (22... h6 $14) 23. Rfd2 {[%emt 0:13:23]} (23. Bxa6 $2
Ra8 24. a3 (24. Bb6 $2 Bc4 $19) 24... Rcxa6 $19) ({Better is} 23. b4 $1 $16)
23... h6 {[%emt 0:02:53]} (23... Qf6 $14 {might be stronger.}) 24. b3 {[%emt 0:
06:05]} (24. Bxa6 $2 Ra8 25. Rxd6 (25. Bb6 $2 Bc4 $19) 25... Raxa6 26. Qd8+
Qxd8 27. Rxd8+ Kh7 $19) 24... Qf6 {[%emt 0:04:41]} 25. Rf2 {[%emt 0:00:00] [#]}
(25. Bxa6 Ra8 26. Bb6 Bd7 $17) 25... Qh4 $146 {[%emt 0:17:56]} ({Predecessor:} 
25... Kh7 26. c4 Nf4 27. Qb4 Nh3 28. Bxh3 Bxh3 29. Kb2 Qd8 30. Qd2 Rb8 31. f4
Qc7 32. Rg1 Rxc4 33. Rg3 d5 {1-0 (39) Ponomariov,R (2699) -Navara,D (2737)
Biel 2017}) 26. Qe1 {[%emt 0:02:37][%cal Ye3h6]} (26. Bxa6 Ra8 27. Bb6 {[#]}
Rxb6 $1 28. Qxb6 Rxa6 $1 29. Qxa6 Qxf2 $15) 26... Nf4 {[%emt 0:00:00]} 27. c4 {
[%emt 0:06:01]} f5 {[%emt 0:01:01]} (27... Qd8 $11) 28. Bxf4 $16 {[%emt 0:10:
21]} (28. exf5 {keeps more tension.} Bxf5+ 29. Kb2 Qf6 30. Bxf4 exf4+ 31. Qc3)
28... Qxf4 {[%emt 0:00:25]} 29. Bd3 {[%emt 0:00:14]} Rf8 {[%emt 0:01:42]} 30.
Kb2 {[%emt 0:06:49]} Qh4 {[%emt 0:02:57]} 31. Rg2 {[%emt 0:00:00]} Qf6 {
[%emt 0:18:40]} (31... Qxe1 $14 32. Rxe1 f4) 32. Qb4 {[%emt 0:00:00] Hoping
for Rdg1.} Rf7 {[%emt 0:06:02]} ({Black should play} 32... f4) 33. Bc2 {
[%emt 0:03:13] White is more active.} Qd8 $2 {[%emt 0:02:28] This move loses
the game for Black.} (33... Bc8 $16 {was necessary.}) 34. Rg6 $18 {[%emt 0:01:
52]} Rf6 {[%emt 0:03:45]} 35. Rxf6 {[%emt 0:00:27]} gxf6 {[%emt 0:00:00]} 36.
exf5 {[%emt 0:05:36]} Bxc4 {[%emt 0:00:07]} 37. Qd2 {[%emt 0:01:39]} ({
Inferior is} 37. bxc4 Rb6 38. Qb3 (38. Rg1+ $2 Kh7 $19) 38... Rxb3+ 39. Bxb3
Qc7 40. c5+ d5 $15) 37... Qb6 {[%emt 0:01:55]} 38. Qxh6 {[%emt 0:00:25]} (38.
Be4 $142 d5 39. Bxd5+ Bxd5 40. Qxd5+ Kf8 41. Rd2) 38... d5 $2 {[%emt 0:00:00]}
(38... Kf7 39. Be4 (39. f4 Ke7 $16) 39... d5) 39. Qg6+ {[%emt 0:02:48] White
is clearly winning.} Kf8 {[%emt 0:00:04]} 40. Rg1 {[%emt 0:00:10] Intending
Qg8+ and mate.} d4 {[%emt 0:01:42]} 41. Qg7+ {[%emt 0:34:15]} Ke8 {[%emt 0:30:
07]} 42. Qh8+ {[%emt 0:00:52]} Ke7 {[%emt 0:00:01]} 43. Rg7+ {[%emt 0:01:28]}
Bf7 {[%emt 0:00:01]} 44. Qh5 {[%emt 0:01:33]} Rxc2+ {[%emt 0:00:00]} 45. Kxc2 {
[%emt 0:00:12]} (45. Kb1 $142 Rc1+ 46. Kxc1 Qc6+ 47. Kd1) 45... d3+ {[%emt 0:
00:07]} 46. Kd1 {[%emt 0:00:10]} Qg1+ {[%emt 0:01:08]} 47. Rxg1 {[%emt 0:00:05]
Rg7 would kill now.} Bxh5 {[%emt 0:00:03]} 48. Kd2 {[%emt 0:00:05] Weighted
Error Value: White=0.15 (very precise) /Black=0.32} 1-0

[Event "44th Chess Olympiad Open 2022"]
[Site "Chennai"]
[Date "2022.08.03"]
[Round "6.3"]
[White "So, Wesley"]
[Black "Idani, Pouya"]
[Result "1/2-1/2"]
[WhiteElo "2773"]
[BlackElo "2641"]
[Annotator "TA"]
[PlyCount "59"]
[EventDate "2022.??.??"]
[TimeControl "60"]

{[%evp 11,59,15,22,12,8,7,11,6,10,11,11,15,14,12,0,0,0,0,0,0,0,0,0,-20,-21,-18,
-20,-20,-20,-21,-12,-15,-17,-24,-21,-22,-13,-17,-14,-9,-6,-19,-29,-23,0,-15,0,
-33,0,-20]} 1. e4 {[%emt 0:00:15]} c6 {[%emt 0:00:22]} 2. d4 {[%emt 0:00:19]}
d5 {[%emt 0:00:04]} 3. exd5 {[%emt 0:00:04]} cxd5 {[%emt 0:00:05]} 4. Bd3 {
[%emt 0:00:26]} Nf6 {[%emt 0:01:11]} 5. c3 {[%emt 0:00:33]} Bg4 {[%emt 0:00:37]
} 6. Qb3 {[%emt 0:01:09]} Qc7 {[%emt 0:00:04]} 7. Ne2 {[%emt 0:05:45] B13:
Caro-Kann: Exchange Variation and Panov-Botvinnik Attack.} Bxe2 {[%emt 0:06:47]
} 8. Bxe2 {[%emt 0:00:10][%cal Yc1f4]} e6 {[%emt 0:00:06]} 9. Nd2 {[%emt 0:00:
00]} Bd6 {[%emt 0:01:35]} 10. Nf3 {[%emt 0:01:02]} O-O {[%emt 0:00:15]} 11. O-O
{[%emt 0:07:44]} Nc6 {[%emt 0:00:08]} 12. g3 {[%emt 0:00:52]} Rab8 {[%emt 0:00:
00] [#]} 13. Re1 $146 {[%emt 0:11:35]} ({Predecessor:} 13. a4 a6 14. Ne1 b5 15.
axb5 axb5 16. Nd3 b4 17. Be3 bxc3 18. Qxc3 Ne4 19. Qc1 {0-1 (48) Bakalarz,M 
(2256)-Niedbala,B (2375) Ustron 2021}) 13... b5 {[%emt 0:03:00]} 14. a3 {
[%emt 0:00:04] Prevents b4.} ({Don't blunder} 14. Bxb5 $2 a6 15. a4 Na5 $19)
14... h6 {[%emt 0:07:30]} 15. Bd3 {[%emt 0:06:16]} ({But not} 15. Bxb5 $2 a6
16. a4 Na5 $19) 15... Rfc8 {[%emt 0:08:20]} 16. Re2 {[%emt 0:15:20]} ({Don't
go for} 16. Bxb5 $2 a6 17. a4 Na5 $19) 16... a5 {[%emt 0:07:00]} 17. Bxb5 {
[%emt 0:00:41]} Na7 {[%emt 0:00:39]} (17... Qb6 $5 18. a4 Na7 $11) 18. a4 {
[%emt 0:00:02]} Nxb5 {[%emt 0:00:47]} 19. axb5 {[%emt 0:00:03]} Qb6 {[%emt 0:
00:00]} 20. Ne1 {[%emt 0:04:38]} Qxb5 {[%emt 0:00:35]} 21. Qxb5 {[%emt 0:00:38]
} Rxb5 {[%emt 0:00:05]} 22. Nd3 {[%emt 0:00:03]} Nd7 {[%emt 0:00:46]} 23. Bf4 {
[%emt 0:00:33]} Bf8 {[%emt 0:09:10]} 24. g4 {[%emt 0:00:51]} Nb6 {[%emt 0:00:
00]} 25. h4 {[%emt 0:00:28]} a4 {[%emt 0:01:01][%cal Ya4a3]} 26. Rc2 {[%emt 0:
00:00]} Rb3 {[%emt 0:07:41]} 27. Nc1 {[%emt 0:00:19]} Rb5 {[%emt 0:00:19]} (
27... Rb4 $5 {[%cal Rb4d4]} 28. Kh2 Be7 $15) 28. Nd3 {[%emt 0:00:15]} Rb3 {
[%emt 0:07:49]} 29. Nc1 {[%emt 0:01:15]} Rb5 {[%emt 0:03:47]} (29... Rb4 $5 {
[%cal Rb4d4]} 30. Kh2 Be7 $15) 30. Nd3 {[%emt 0:02:08] Not much happened in
this game. Weighted Error Value: White=0.03 (flawless) /Black=0.04 (flawless)}
1/2-1/2